[Event "Chess sin Fronteras-IM 2025"]
[Site "San Jose"]
[Date "2025.02.15"]
[Round "4.5"]
[White "Deng, Henry"]
[Black "Sivakumar, Shaaketh"]
[Result "1-0"]
[Annotator "RC"]
[ECO "B23"]
[WhiteElo "2321"]
[BlackElo "2289"]
[PlyCount "87"]
[EventDate "2025.02.13"]
[EventType "tourn"]
[EventCountry "USA"]
[SourceTitle "playchess.com"]
[Source "ChessBase"]
[SourceQuality "1"]
[TimeControl "5400+30"]

1. e4 {[%emt 0:00:19]} c5 {[%emt 0:00:58]} 2. Nc3 {[%emt 0:00:34]} d6 {[%emt 0:00:08]} 3. Bb5+ {[%emt 0:00:49]} Bd7 {[%emt 0:00:09]} 4. Bxd7+ {[%emt 0:00:03]} Qxd7 {[%emt 0:00:12]} 5. d4 {[%emt 0:00:02]} cxd4 {[%emt 0:00:12]} 6. Qxd4 {[%emt 0:00:03]} Nc6 {[%emt 0:00:13]} 7. Qd3 {[%emt 0:00:01]} Nf6 {[%emt 0:00:18]} 8. Bg5 {[%emt 0:00:51]} e6 {[%emt 0:01:20]} 9. Bxf6 {[%emt 0:01:34]} gxf6 {[%emt 0:00:03]} 10. Nge2 {[%emt 0:00:56]} Be7 {[%emt 0:00:26]} 11. f4 {[%emt 0:02:12]} O-O-O {[%emt 0:00:34]} 12. O-O-O {[%emt 0:02:05]} Kb8 {[%emt 0:00:29]} 13. Qh3 {[%emt 0:04:17]} h5 {[%emt 0:02:28]} 14. Rhf1 {[%emt 0:01:41]} Bf8 {[%emt 0:01:22]} 15. Kb1 {[%emt 1:22:33]} Qe7 {[%emt 0:01:44]} 16. f5 {[%emt 0:00:00]} Bh6 {[%emt 0:03:08]} 17. Nb5 {[%emt 0:00:00]} Bg5 {[%emt 0:09:37]} 18. Ned4 {[%emt 0:00:00]} Nxd4 {[%emt 0:04:42]} 19. Nxd4 {[%emt 0:00:00]} d5 {[%emt 0:05:27]} 20. fxe6 {[%emt 0:00:00]} dxe4 {[%emt 0:00:10]} 21. Qg3+ {[%emt 0:00:00]} Ka8 {[%emt 0:00:10]} 22. h4 {[%emt 0:00:00]} Bh6 {[%emt 0:01:21]} 23. exf7 {[%emt 0:00:00]} e3 {[%emt 0:01:13]} 24. Qf3 {[%emt 0:00:00]} Qe5 {[%emt 0:05:49]} 25. c3 {[%emt 0:00:00]} a6 {[%emt 0:01:42]} 26. Qxf6 {[%emt 0:00:00]} Qe4+ {[%emt 0:01:12]} 27. Ka1 {[%emt 0:00:00]} Rdf8 {[%emt 0:01:22]} 28. Qf3 {[%emt 0:00:00]} Qxh4 {[%emt 0:03:07]} 29. Ne6 {[%emt 0:00:00]} Rxf7 {[%emt 0:00:18]} 30. Qxf7 {[%emt 0:00:00]} e2 {[%emt 0:00:14]} 31. Nc5 {[%emt 0:00:00]} Rb8 {[%emt 0:01:18]} 32. Qd5 {[%emt 0:00:00]} Bg5 {[%emt 0:00:49]} 33. Rde1 {[%emt 0:00:00]} exf1=Q {[%emt 0:00:05]} 34. Rxf1 {[%emt 0:00:00]} Be7 {[%emt 0:02:37]} 35. Ne6 {[%emt 0:00:00]} Qg3 {[%emt 0:01:44]} 36. a4 {[%emt 0:00:00]} Qd6 {[%emt 0:00:51]} 37. Qc4 {[%emt 0:00:00]} Rh8 {[%emt 0:03:23]} 38. Rf7 {[%emt 0:00:00]} Kb8 {[%emt 0:00:11]} 39. Qe4 {[%emt 0:00:00]} Rc8 {[%emt 0:02:06]} 40. Nf4 {[%emt 0:00:00]} Qd1+ {[%emt 0:01:44]} 41. Ka2 {[%emt 0:00:02]} Rc7 {[%emt 0:00:06]} 42. Nd5 {[%emt 0:01:10]} Bb4 {[%emt 0:00:02]} 43. Qe8+ {[%emt 0:01:47]} Rc8 {[%emt 0:00:01]} 44. Qd7 {[%emt 0:00:11]} 1-0

[Event "Chess sin Fronteras-IM 2025"]
[Site "San Jose"]
[Date "2025.02.16"]
[Round "5.1"]
[White "Sivakumar, Shaaketh"]
[Black "Martinez Romero, Martin"]
[Result "1/2-1/2"]
[Annotator "RC"]
[ECO "E60"]
[WhiteElo "2289"]
[BlackElo "2393"]
[PlyCount "66"]
[EventDate "2025.02.13"]
[EventType "tourn"]
[EventCountry "USA"]
[SourceTitle "playchess.com"]
[Source "ChessBase"]
[SourceQuality "1"]
[TimeControl "5400+30"]

1. d4 {[%emt 0:00:51]} Nf6 {[%emt 0:01:26]} 2. Nf3 {[%emt 0:00:05]} g6 {[%emt 0:01:16]} 3. g3 {[%emt 0:00:06]} Bg7 {[%emt 0:00:03]} 4. Bg2 {[%emt 0:00:04]} O-O {[%emt 0:00:05]} 5. O-O {[%emt 0:00:04]} d6 {[%emt 0:00:03]} 6. b3 {[%emt 0:00:10]} Nc6 {[%emt 0:00:10]} 7. Bb2 {[%emt 0:00:07]} a6 {[%emt 0:00:07]} 8. c4 {[%emt 0:00:15]} Rb8 {[%emt 0:00:37]} 9. d5 {[%emt 0:01:46]} Na5 {[%emt 0:00:25]} 10. Nd4 {[%emt 0:03:00]} Bd7 {[%emt 0:00:40]} 11. Qd2 {[%emt 0:00:28]} c5 {[%emt 0:00:11]} 12. dxc6 {[%emt 0:00:08]} Nxc6 {[%emt 0:00:21]} 13. Nc3 {[%emt 0:00:05]} Qb6 {[%emt 0:02:58]} 14. e3 {[%emt 0:00:55]} Rfc8 {[%emt 0:00:26]} 15. Rfd1 {[%emt 0:00:11]} Qd8 {[%emt 0:02:37]} 16. Rac1 {[%emt 0:00:18]} Bg4 {[%emt 0:07:59]} 17. Nxc6 {[%emt 0:03:06]} bxc6 {[%emt 0:00:55]} 18. Ne2 {[%emt 0:01:50]} a5 {[%emt 0:05:31]} 19. h3 {[%emt 0:01:25]} Bxe2 {[%emt 0:00:11]} 20. Qxe2 {[%emt 0:00:02]} a4 {[%emt 0:00:18]} 21. c5 {[%emt 0:06:33]} axb3 {[%emt 0:00:43]} 22. cxd6 {[%emt 0:00:05]} bxa2 {[%emt 0:00:36]} 23. Bxf6 {[%emt 0:00:26]} Bxf6 {[%emt 0:00:13]} 24. Qxa2 {[%emt 0:00:09]} exd6 {[%emt 0:00:31]} 25. Rxc6 {[%emt 0:00:17]} Rxc6 {[%emt 0:00:54]} 26. Bxc6 {[%emt 0:00:01]} Qc8 {[%emt 0:00:14]} 27. Qa7 {[%emt 0:02:01]} Kg7 {[%emt 0:02:51]} 28. Bd5 {[%emt 0:02:07]} Qf8 {[%emt 0:00:06]} 29. Rc1 {[%emt 0:00:41]} Re8 {[%emt 0:00:31]} 30. Qb6 {[%emt 0:01:17]} Rb8 {[%emt 0:01:15]} 31. Qa5 {[%emt 0:00:10]} Rc8 {[%emt 0:01:01]} 32. Rc7 {[%emt 0:00:05]} Rxc7 {[%emt 0:00:08]} 33. Qxc7 {[%emt 0:00:01]} Qe7 {[%emt 0:00:10]} 1/2-1/2

[Event "Chess sin Fronteras-IM 2025"]
[Site "San Jose"]
[Date "2025.02.16"]
[Round "5.2"]
[White "Sivakumar, Shaashwath"]
[Black "Deng, Henry"]
[Result "1/2-1/2"]
[Annotator "RC"]
[ECO "D12"]
[WhiteElo "2273"]
[BlackElo "2321"]
[PlyCount "86"]
[EventDate "2025.02.13"]
[EventType "tourn"]
[EventCountry "USA"]
[SourceTitle "playchess.com"]
[Source "ChessBase"]
[SourceQuality "1"]
[TimeControl "5400+30"]

1. d4 {[%emt 0:07:54]} d5 {[%emt 1:31:00]} 2. c4 {[%emt 0:00:05]} c6 {[%emt 0:00:00]} 3. Nf3 {[%emt 0:00:03]} Nf6 {[%emt 0:00:00]} 4. e3 {[%emt 0:00:05]} Bf5 {[%emt 0:00:00]} 5. Nc3 {[%emt 0:00:05]} e6 {[%emt 0:00:00]} 6. Nh4 {[%emt 0:00:05]} Bg6 {[%emt 0:00:00]} 7. Be2 {[%emt 0:01:14]} Nbd7 {[%emt 0:00:00]} 8. Bd2 {[%emt 0:00:16]} Be7 {[%emt 0:00:00]} 9. Rc1 {[%emt 0:00:43]} dxc4 {[%emt 0:00:00]} 10. Nxg6 {[%emt 0:00:07]} hxg6 {[%emt 0:00:00]} 11. Bxc4 {[%emt 0:00:08]} O-O {[%emt 0:00:00]} 12. O-O {[%emt 0:01:13]} c5 {[%emt 0:00:00]} 13. Be2 {[%emt 0:00:24]} cxd4 {[%emt 0:00:00]} 14. exd4 {[%emt 0:00:05]} Nb6 {[%emt 0:00:00]} 15. Bf4 {[%emt 0:11:09]} Nfd5 {[%emt 0:00:00]} 16. Be5 {[%emt 0:00:37]} Bg5 {[%emt 0:00:00]} 17. Nxd5 {[%emt 0:06:02]} Nxd5 {[%emt 0:00:00]} 18. Rc4 {[%emt 0:00:06]} Rc8 {[%emt 0:00:00]} 19. Rc5 {[%emt 0:18:40]} Bf6 {[%emt 0:00:00]} 20. Rxc8 {[%emt 0:14:38]} Qxc8 {[%emt 0:00:00]} 21. Qd2 {[%emt 0:02:06]} Bxe5 {[%emt 0:00:00]} 22. dxe5 {[%emt 0:00:07]} Qc7 {[%emt 0:00:00]} 23. Qd4 {[%emt 0:00:05]} b6 {[%emt 0:00:00]} 24. Bf3 {[%emt 0:03:31]} Rd8 {[%emt 0:00:00]} 25. Rd1 {[%emt 0:01:34]} Rd7 {[%emt 0:00:00]} 26. Qa4 {[%emt 0:00:44]} Rd8 {[%emt 0:00:00]} 27. Qd4 {[%emt 0:00:23]} b5 {[%emt 0:00:00]} 28. g3 {[%emt 0:00:22]} Rd7 {[%emt 0:00:00]} 29. Qe4 {[%emt 0:00:13]} Nb6 {[%emt 0:00:00]} 30. Rxd7 {[%emt 0:01:25]} Qxd7 {[%emt 0:00:00]} 31. Qc6 {[%emt 0:01:56]} Qd4 {[%emt 0:00:00]} 32. Qe8+ {[%emt 0:01:44]} Kh7 {[%emt 0:00:00]} 33. Qxf7 {[%emt 0:00:05]} Qxe5 {[%emt 0:00:00]} 34. b3 {[%emt 0:00:33]} Nd5 {[%emt 0:00:00]} 35. Qxa7 {[%emt 0:01:03]} Nb4 {[%emt 0:00:00]} 36. Qe7 {[%emt 0:01:54]} Nxa2 {[%emt 0:17:30]} 37. Bg4 {[%emt 0:00:37]} Qe1+ {[%emt 0:00:00]} 38. Kg2 {[%emt 0:00:06]} Qe4+ {[%emt 0:00:00]} 39. Kh3 {[%emt 0:00:27]} Nc1 {[%emt 0:00:00]} 40. Bxe6 {[%emt 0:06:34]} Nd3 {[%emt 0:00:00]} 41. f3 {[%emt 0:00:06]} Nf4+ {[%emt 0:00:00]} 42. gxf4 {[%emt 0:00:05]} Qxf3+ {[%emt 0:00:00]} 43. Kh4 {[%emt 0:00:06]} Qxf4+ {[%emt 0:00:00]} 1/2-1/2

[Event "Chess sin Fronteras-IM 2025"]
[Site "San Jose"]
[Date "2025.02.16"]
[Round "5.3"]
[White "Liu, Patrick"]
[Black "Guo, Andrew"]
[Result "1/2-1/2"]
[Annotator "ChessBase"]
[ECO "B31"]
[WhiteElo "2159"]
[BlackElo "2226"]
[PlyCount "60"]
[EventDate "2025.02.13"]
[EventType "tourn"]
[EventCountry "USA"]
[SourceTitle "playchess.com"]
[Source "ChessBase"]
[SourceQuality "1"]
[TimeControl "5400+30"]

1. e4 {[%emt 0:00:04]} c5 {[%emt 0:00:19]} 2. Nf3 {[%emt 1:31:26]} Nc6 {[%emt 0:00:15]} 3. Bb5 {[%emt 0:00:00]} Nf6 {[%emt 0:00:41]} 4. Bxc6 {[%emt 0:00:00]} dxc6 {[%emt 0:00:27]} 5. d3 {[%emt 0:01:30]} Qc7 {[%emt 1:31:18]} 6. h3 {[%emt 0:00:00]} g6 {[%emt 0:00:00]} 7. O-O {[%emt 0:00:00]} Bg7 {[%emt 0:00:00]} 8. Nc3 {[%emt 0:01:30]} O-O {[%emt 0:00:00]} 9. Be3 {[%emt 0:00:00]} b6 {[%emt 0:00:00]} 10. Qd2 {[%emt 0:01:00]} Re8 {[%emt 0:00:00]} 11. Bh6 {[%emt 0:00:00]} Bh8 {[%emt 0:00:00]} 12. Ng5 {[%emt 0:00:00]} Ba6 {[%emt 0:00:00]} 13. Qe2 {[%emt 0:00:00]} e5 {[%emt 0:00:00]} 14. b3 {[%emt 0:00:00]} Rad8 {[%emt 0:00:00]} 15. Rae1 Nh5 {[%emt 0:00:00]} 16. Qe3 {[%emt 0:00:00]} Bc8 {[%emt 0:00:00]} 17. Ne2 {[%emt 0:00:00]} f6 {[%emt 0:06:00]} 18. Nf3 {[%emt 0:04:00]} Ng7 {[%emt 0:00:00]} 19. Qc1 {[%emt 0:00:00]} Ne6 {[%emt 0:00:00]} 20. Nh2 {[%emt 0:00:00]} f5 {[%emt 0:00:00]} 21. exf5 {[%emt 0:00:00]} gxf5 {[%emt 0:00:00]} 22. f4 {[%emt 0:00:00]} exf4 {[%emt 0:00:00]} 23. Nxf4 {[%emt 0:00:00]} Nd4 {[%emt 0:00:00]} 24. Bg5 {[%emt 0:00:00]} Rxe1 {[%emt 0:00:00]} 25. Rxe1 {[%emt 0:00:00]} Rf8 {[%emt 0:00:00]} 26. Re7 {[%emt 0:00:00]} Qd6 {[%emt 0:00:00]} 27. Qe1 {[%emt 0:00:00]} Rf7 {[%emt 0:00:00]} 28. Re8+ {[%emt 0:00:00]} Rf8 {[%emt 0:00:00]} 29. Re7 {[%emt 0:00:00]} Rf7 {[%emt 0:00:00]} 30. Re8+ {[%emt 0:00:00]} Rf8 {[%emt 0:00:00]} 1/2-1/2

[Event "Chess sin Fronteras-IM 2025"]
[Site "San Jose"]
[Date "2025.02.16"]
[Round "5.4"]
[White "Jimenez Garcia, Emmanuel"]
[Black "Paredes Lagos, Anthony Javier"]
[Result "1-0"]
[Annotator "RC"]
[ECO "A06"]
[WhiteElo "2364"]
[BlackElo "2338"]
[PlyCount "119"]
[EventDate "2025.02.13"]
[EventType "tourn"]
[EventCountry "USA"]
[SourceTitle "playchess.com"]
[Source "ChessBase"]
[SourceQuality "1"]
[TimeControl "5400+30"]

1. Nf3 {[%emt 0:01:22]} d5 {[%emt 0:10:52]} 2. b3 {[%emt 0:01:03]} Bf5 {[%emt 0:00:22]} 3. Bb2 {[%emt 0:00:11]} e6 {[%emt 0:00:14]} 4. g3 {[%emt 1:29:54]} h6 {[%emt 1:21:02]} 5. Bg2 {[%emt 0:00:00]} Nf6 {[%emt 0:00:00]} 6. d3 {[%emt 0:00:00]} Be7 {[%emt 0:00:00]} 7. Nbd2 {[%emt 0:00:00]} O-O {[%emt 0:00:00]} 8. O-O {[%emt 0:00:00]} Re8 {[%emt 0:00:00]} 9. Ne5 {[%emt 0:00:00]} c6 {[%emt 0:00:00]} 10. e4 {[%emt 0:00:00]} Bh7 {[%emt 0:00:00]} 11. Qe2 {[%emt 0:00:00]} Nbd7 {[%emt 0:00:00]} 12. f4 {[%emt 0:00:00]} a5 {[%emt 0:00:00]} 13. Nef3 {[%emt 0:00:00]} dxe4 {[%emt 0:00:00]} 14. dxe4 {[%emt 0:00:00]} Nc5 {[%emt 0:00:00]} 15. Ne5 {[%emt 0:00:00]} Qb6 {[%emt 0:00:00]} 16. Kh1 {[%emt 0:00:00]} Rad8 {[%emt 0:00:00]} 17. Bc3 {[%emt 0:00:00]} Qc7 {[%emt 0:00:00]} 18. Nec4 {[%emt 0:00:00]} b6 {[%emt 0:00:00]} 19. g4 {[%emt 0:00:00]} Nfd7 {[%emt 0:00:00]} 20. a4 {[%emt 0:00:00]} Nb7 {[%emt 0:00:00]} 21. Nf3 {[%emt 0:00:00]} b5 {[%emt 0:00:00]} 22. Ncd2 {[%emt 0:00:00]} Bf6 {[%emt 0:00:00]} 23. e5 {[%emt 0:00:00]} Be7 {[%emt 0:00:00]} 24. Nd4 {[%emt 0:00:00]} b4 {[%emt 0:00:00]} 25. Bb2 {[%emt 0:00:00]} Nb8 {[%emt 0:00:00]} 26. f5 {[%emt 0:00:00]} Bc5 {[%emt 0:00:00]} 27. fxe6 {[%emt 0:00:46]} fxe6 {[%emt 0:00:00]} 28. Qc4 {[%emt 0:01:54]} Bxd4 {[%emt 0:00:00]} 29. Bxd4 {[%emt 0:00:02]} Qd7 {[%emt 0:00:00]} 30. Be3 {[%emt 0:01:10]} Qc7 {[%emt 0:00:00]} 31. Rae1 {[%emt 0:01:48]} Rc8 {[%emt 0:00:00]} 32. Nf3 {[%emt 0:02:36]} Nd7 {[%emt 0:00:00]} 33. g5 {[%emt 0:00:50]} h5 {[%emt 0:00:00]} 34. Bd4 {[%emt 0:00:58]} Nd8 {[%emt 0:03:50]} 35. Nh4 {[%emt 0:00:46]} g6 {[%emt 0:01:09]} 36. Nf3 {[%emt 0:02:29]} c5 {[%emt 0:01:17]} 37. Bb2 {[%emt 0:00:23]} Nf7 {[%emt 0:00:25]} 38. Nd2 {[%emt 0:01:28]} Nb6 {[%emt 0:01:34]} 39. Qf4 {[%emt 0:00:32]} Rf8 {[%emt 0:00:04]} 40. Ne4 {[%emt 0:00:20]} Nd5 {[%emt 0:00:04]} 41. Qg3 {[%emt 0:01:05]} c4 {[%emt 0:01:50]} 42. Nd6 {[%emt 0:00:02]} c3 {[%emt 0:01:07]} 43. Bc1 {[%emt 0:00:30]} Rcd8 {[%emt 0:02:06]} 44. Bxd5 {[%emt 0:00:31]} exd5 {[%emt 0:00:08]} 45. Nb5 {[%emt 0:00:27]} Qe7 {[%emt 0:00:58]} 46. Nd4 {[%emt 0:00:52]} Rde8 {[%emt 0:00:46]} 47. Rf6 {[%emt 0:00:43]} Nd8 {[%emt 0:01:05]} 48. Qf3 {[%emt 0:00:43]} Qc5 {[%emt 0:00:58]} 49. Qd3 {[%emt 0:00:33]} Rf7 {[%emt 0:04:30]} 50. Rxf7 {[%emt 0:00:43]} Nxf7 {[%emt 0:00:06]} 51. Bf4 {[%emt 0:00:13]} Nd6 {[%emt 0:00:30]} 52. Kg2 {[%emt 0:00:42]} Ne4 {[%emt 0:00:32]} 53. Qb5 {[%emt 0:00:11]} Rf8 {[%emt 0:00:46]} 54. Qxc5 {[%emt 0:00:02]} Nxc5 {[%emt 0:00:01]} 55. e6 {[%emt 0:00:24]} Ne4 {[%emt 0:00:26]} 56. Bc7 {[%emt 0:00:41]} Ra8 {[%emt 0:01:11]} 57. h4 {[%emt 0:00:17]} Kg7 {[%emt 0:00:34]} 58. Be5+ {[%emt 0:00:19]} Kg8 {[%emt 0:00:26]} 59. Rf1 {[%emt 0:00:35]} Re8 {[%emt 0:00:36]} 60. Rf7 1-0

[Event "Chess sin Fronteras-IM 2025"]
[Site "San Jose"]
[Date "2025.02.16"]
[Round "5.5"]
[White "Perdomo, Leandro"]
[Black "Yan, Nathan"]
[Result "1/2-1/2"]
[Annotator "RC"]
[ECO "D38"]
[WhiteElo "2364"]
[BlackElo "2152"]
[PlyCount "52"]
[EventDate "2025.02.13"]
[EventType "tourn"]
[EventCountry "USA"]
[SourceTitle "playchess.com"]
[Source "ChessBase"]
[SourceQuality "1"]
[TimeControl "5400+30"]

1. d4 {[%emt 0:00:03]} Nf6 {[%emt 0:00:30]} 2. c4 {[%emt 0:00:04]} e6 {[%emt 0:00:15]} 3. Nf3 {[%emt 0:00:03]} d5 {[%emt 0:00:26]} 4. Nc3 {[%emt 0:00:04]} Bb4 {[%emt 0:00:18]} 5. cxd5 {[%emt 0:00:08]} exd5 {[%emt 0:00:37]} 6. Bg5 {[%emt 0:00:04]} h6 {[%emt 0:01:39]} 7. Bxf6 {[%emt 0:00:45]} Qxf6 {[%emt 0:00:08]} 8. Qa4+ {[%emt 0:00:06]} Nc6 {[%emt 0:00:09]} 9. e3 {[%emt 0:00:39]} O-O {[%emt 0:00:58]} 10. Be2 {[%emt 0:00:26]} Qd6 {[%emt 0:05:08]} 11. O-O {[%emt 0:01:04]} Bxc3 {[%emt 0:00:24]} 12. bxc3 {[%emt 0:00:03]} Ne7 {[%emt 0:00:09]} 13. Qb4 {[%emt 0:14:55]} Qd8 {[%emt 0:02:24]} 14. c4 {[%emt 0:01:55]} dxc4 {[%emt 0:08:05]} 15. Bxc4 {[%emt 0:00:24]} c6 {[%emt 0:00:19]} 16. Ne5 {[%emt 0:07:55]} Nf5 {[%emt 0:03:00]} 17. a4 {[%emt 0:05:26]} Nd6 {[%emt 0:02:37]} 18. Ba2 {[%emt 0:01:24]} a5 {[%emt 0:14:59]} 19. Qa3 {[%emt 0:05:28]} Bf5 {[%emt 0:02:37]} 20. f3 {[%emt 0:01:32]} Qe7 {[%emt 0:01:34]} 21. Nc4 {[%emt 0:15:58]} Rfd8 {[%emt 0:01:53]} 22. e4 {[%emt 0:00:35]} Be6 {[%emt 0:00:50]} 23. d5 {[%emt 0:01:39]} cxd5 {[%emt 0:01:59]} 24. Nb6 {[%emt 0:00:07]} Ra6 {[%emt 0:02:39]} 25. Nxd5 {[%emt 0:00:04]} Bxd5 {[%emt 0:05:35]} 26. Bxd5 {[%emt 0:00:02]} Rb6 {[%emt 0:44:18]} 1/2-1/2

[Event "Chess sin Fronteras-IM 2025"]
[Site "San Jose"]
[Date "2025.02.16"]
[Round "6.1"]
[White "Martinez Romero, Martin"]
[Black "Yan, Nathan"]
[Result "1-0"]
[Annotator "RC"]
[ECO "E49"]
[WhiteElo "2393"]
[BlackElo "2152"]
[PlyCount "69"]
[EventDate "2025.02.13"]
[EventType "tourn"]
[EventCountry "USA"]
[SourceTitle "playchess.com"]
[Source "ChessBase"]
[SourceQuality "1"]
[TimeControl "5400+30"]

1. d4 {[%emt 0:06:50]} Nf6 {[%emt 0:00:09]} 2. c4 {[%emt 0:00:07]} e6 {[%emt 0:00:07]} 3. Nc3 {[%emt 0:00:02]} Bb4 {[%emt 0:00:11]} 4. e3 {[%emt 0:00:05]} O-O {[%emt 0:00:10]} 5. Bd3 {[%emt 0:00:03]} d5 {[%emt 0:00:10]} 6. a3 {[%emt 0:00:05]} Bxc3+ {[%emt 0:00:06]} 7. bxc3 {[%emt 0:00:03]} dxc4 {[%emt 0:00:15]} 8. Bxc4 {[%emt 0:00:05]} c5 {[%emt 0:00:06]} 9. Ne2 {[%emt 0:00:03]} Qc7 {[%emt 0:01:08]} 10. Bd3 {[%emt 0:00:04]} Nc6 {[%emt 0:02:47]} 11. O-O {[%emt 0:00:21]} Rd8 {[%emt 0:01:23]} 12. Ng3 {[%emt 0:03:27]} e5 {[%emt 0:04:22]} 13. f4 {[%emt 0:00:04]} exd4 {[%emt 0:09:19]} 14. cxd4 {[%emt 0:01:15]} cxd4 {[%emt 0:07:27]} 15. e4 {[%emt 0:00:09]} Ng4 {[%emt 0:10:30]} 16. e5 {[%emt 0:00:18]} Qe7 {[%emt 0:06:53]} 17. h3 {[%emt 0:06:01]} Ne3 {[%emt 0:05:46]} 18. Bxe3 {[%emt 0:00:49]} dxe3 {[%emt 0:00:02]} 19. Qe2 {[%emt 0:00:06]} g6 {[%emt 0:16:31]} 20. Qxe3 {[%emt 0:00:56]} Qd7 {[%emt 0:01:13]} 21. Rad1 {[%emt 0:03:42]} Qd4 {[%emt 0:00:10]} 22. Qxd4 {[%emt 0:00:26]} Nxd4 {[%emt 0:01:00]} 23. Ne4 {[%emt 0:00:53]} Bf5 {[%emt 0:02:35]} 24. Kh2 {[%emt 0:04:59]} Rac8 {[%emt 0:03:13]} 25. Nd6 {[%emt 0:00:40]} Bxd3 {[%emt 0:01:24]} 26. Rxd3 {[%emt 0:00:02]} Nb5 {[%emt 0:00:20]} 27. Nxc8 {[%emt 0:00:47]} Rxd3 {[%emt 0:00:03]} 28. Rb1 {[%emt 0:00:09]} Nxa3 {[%emt 0:07:11]} 29. Rxb7 {[%emt 0:00:09]} Rd4 {[%emt 0:02:14]} 30. f5 {[%emt 0:04:09]} gxf5 {[%emt 0:05:40]} 31. Ne7+ {[%emt 0:00:56]} Kf8 {[%emt 0:00:01]} 32. Nxf5 {[%emt 0:00:06]} Rd8 {[%emt 0:00:01]} 33. Nd6 {[%emt 0:00:28]} f5 {[%emt 0:02:36]} 34. Rf7+ {[%emt 0:00:09]} Kg8 {[%emt 0:00:02]} 35. Rxf5 {[%emt 0:00:05]} 1-0

[Event "Chess sin Fronteras-IM 2025"]
[Site "San Jose"]
[Date "2025.02.16"]
[Round "6.2"]
[White "Paredes Lagos, Anthony Javier"]
[Black "Perdomo, Leandro"]
[Result "1/2-1/2"]
[Annotator "ChessBase"]
[ECO "C78"]
[WhiteElo "2338"]
[BlackElo "2364"]
[PlyCount "43"]
[EventDate "2025.02.13"]
[EventType "tourn"]
[EventCountry "USA"]
[SourceTitle "playchess.com"]
[Source "ChessBase"]
[SourceQuality "1"]
[TimeControl "5400+30"]

1. e4 {[%emt 0:13:17]} e5 {[%emt 0:00:09]} 2. Nf3 {[%emt 0:00:24]} Nc6 {[%emt 0:00:11]} 3. Bb5 {[%emt 0:00:32]} a6 {[%emt 0:00:11]} 4. Ba4 {[%emt 0:00:16]} Nf6 {[%emt 0:00:12]} 5. O-O {[%emt 0:00:40]} b5 {[%emt 0:00:55]} 6. Bb3 {[%emt 0:00:09]} Bc5 {[%emt 0:00:15]} 7. c3 {[%emt 0:01:30]} d6 {[%emt 0:02:43]} 8. d4 {[%emt 0:00:32]} Bb6 {[%emt 0:00:10]} 9. dxe5 {[%emt 0:00:55]} Nxe5 {[%emt 0:00:22]} 10. Nxe5 {[%emt 0:00:56]} dxe5 {[%emt 0:00:08]} 11. Qxd8+ {[%emt 0:00:25]} Kxd8 {[%emt 0:00:03]} 12. Bxf7 {[%emt 0:00:27]} Rf8 {[%emt 0:00:29]} 13. Bd5 {[%emt 0:00:22]} Nxd5 {[%emt 0:00:12]} 14. exd5 {[%emt 0:00:05]} Bb7 {[%emt 0:00:14]} 15. Bg5+ {[%emt 0:01:09]} Kd7 {[%emt 0:00:30]} 16. Nd2 {[%emt 0:00:51]} h6 {[%emt 0:01:53]} 17. Be3 {[%emt 0:00:10]} Bxe3 {[%emt 0:00:46]} 18. fxe3 {[%emt 0:00:04]} Bxd5 {[%emt 0:00:13]} 19. e4 {[%emt 0:00:13]} Bc6 {[%emt 0:01:00]} 20. Rxf8 {[%emt 0:00:42]} Rxf8 {[%emt 0:00:03]} 21. Rf1 {[%emt 0:00:41]} Rxf1+ {[%emt 0:00:22]} 22. Kxf1 {[%emt 1:17:10]} 1/2-1/2

[Event "Chess sin Fronteras-IM 2025"]
[Site "San Jose"]
[Date "2025.02.16"]
[Round "6.4"]
[White "Deng, Henry"]
[Black "Liu, Patrick"]
[Result "1/2-1/2"]
[Annotator "RC"]
[ECO "B30"]
[WhiteElo "2321"]
[BlackElo "2159"]
[PlyCount "62"]
[EventDate "2025.02.13"]
[EventType "tourn"]
[EventCountry "USA"]
[SourceTitle "playchess.com"]
[Source "ChessBase"]
[SourceQuality "1"]
[TimeControl "5400+30"]

1. e4 {[%emt 0:00:13]} c5 {[%emt 0:00:04]} 2. Nc3 {[%emt 0:01:08]} Nc6 {[%emt 0:00:09]} 3. Bb5 {[%emt 0:00:35]} Nd4 {[%emt 0:00:13]} 4. Nf3 {[%emt 0:00:05]} e6 {[%emt 0:00:10]} 5. O-O {[%emt 0:00:14]} a6 {[%emt 0:00:13]} 6. Bd3 {[%emt 0:00:05]} Nc6 {[%emt 0:00:11]} 7. e5 {[%emt 0:00:43]} d5 {[%emt 0:00:59]} 8. exd6 {[%emt 0:00:06]} Bxd6 {[%emt 0:00:05]} 9. Ne4 {[%emt 0:01:44]} Be7 {[%emt 0:00:37]} 10. Re1 {[%emt 0:00:13]} Nf6 {[%emt 0:01:02]} 11. Nxf6+ {[%emt 0:00:25]} Bxf6 {[%emt 0:00:38]} 12. Be4 {[%emt 0:00:38]} Qd6 {[%emt 0:08:57]} 13. d3 {[%emt 0:05:54]} h6 {[%emt 0:01:44]} 14. a4 {[%emt 0:06:37]} O-O {[%emt 0:06:27]} 15. Nd2 {[%emt 0:03:35]} Na5 {[%emt 0:31:05]} 16. g3 {[%emt 0:10:37]} g6 {[%emt 0:02:35]} 17. Bg2 {[%emt 0:05:46]} Bg7 {[%emt 0:01:28]} 18. Nc4 {[%emt 0:07:43]} Nxc4 {[%emt 0:10:23]} 19. dxc4 {[%emt 0:00:05]} Qc7 {[%emt 0:00:39]} 20. Qe2 {[%emt 0:03:27]} e5 {[%emt 0:05:28]} 21. Bd5 {[%emt 0:03:07]} a5 {[%emt 0:03:50]} 22. b3 {[%emt 0:05:30]} Kh7 {[%emt 0:02:34]} 23. Bb2 {[%emt 0:04:02]} Re8 {[%emt 0:02:17]} 24. Rad1 {[%emt 0:03:25]} f5 {[%emt 0:01:43]} 25. Bg2 {[%emt 0:02:05]} Ra6 {[%emt 0:01:39]} 26. Rd5 {[%emt 0:02:17]} Rae6 {[%emt 0:01:08]} 27. Red1 {[%emt 0:04:10]} b6 {[%emt 0:01:11]} 28. Qd2 {[%emt 0:01:42]} Bf6 {[%emt 0:04:31]} 29. Rd6 {[%emt 0:03:14]} Kg7 {[%emt 0:00:50]} 30. f4 {[%emt 0:02:41]} e4 {[%emt 0:01:59]} 31. Bxf6+ {[%emt 0:00:42]} Kxf6 {[%emt 0:01:17]} 1/2-1/2